fUSD/lending_fUSD_20250804
["ID","MTS","AMOUNT","RATE_DAILY","PERIOD"]
[377184203,1754268726364,-1196.43849887,0.00050871,120]
[377184204,1754268726374,-1676.11318554,0.00050872,120]
[377184205,1754268726386,-165.37686899,0.00050873,120]
[377184206,1754268726395,-1094.60266999,0.00050874,120]
[377184207,1754268726405,-743.78711568,0.00050875,120]
[377184208,1754268726414,-307.88690174,0.00050875,120]
[377184209,1754268726423,-786.44948424,0.00050876,120]
[377184210,1754268726433,-5208.17513029,0.00050876,120]
[377184211,1754268726442,-342.71760471,0.00050877,120]
[377184212,1754268726451,-1142.39201565,0.00050878,120]
[377184213,1754268726461,-186.52373497,0.0005088,120]
[377184214,1754268726471,-291.61290294,0.0005088,120]
[377184215,1754268726480,-3990.85406859,0.00050881,120]
[377184216,1754268726490,-1199.65663814,0.00050881,120]
[377184217,1754268726500,-171.02414498,0.00050881,120]
[377184218,1754268726509,-551.25622991,0.00050883,120]
[377184219,1754268726519,-728.35822835,0.00050883,120]
[377184220,1754268726528,-307.88690174,0.00050884,120]
[377184221,1754268726538,-786.44948424,0.00050885,120]
[377184222,1754268726547,-308.02826665,0.00050886,120]
[377184223,1754268726556,-5208.17513029,0.00050891,120]
[377184224,1754268726566,-1142.39201565,0.00050892,120]
[377184225,1754268726576,-150.0,0.00050892,7]
[377184226,1754268726585,-1199.65663814,0.00050893,120]
[377184227,1754268726594,-177.82814965,0.00050894,120]
[377184228,1754268726604,-150.0,0.00050894,7]
[377184229,1754268726613,-358.93154969,0.00050894,120]
[377184230,1754268726622,-1837.5207663,0.00050895,120]
[377184231,1754268726635,-171.02414498,0.00050899,120]
[377184232,1754268726644,-1196.43849887,0.000509,120]
[377184233,1754268726653,-5587.04395173,0.00050902,120]
[377184234,1754268726666,-326.13229496,0.00050902,120]
[377184235,1754268726675,-218.50746853,0.00050903,120]
[377184236,1754268726684,-186.52373497,0.00050904,120]
[377184237,1754268726694,-223.13613472,0.00050905,120]
[377184238,1754268726705,-177.82814965,0.00050905,120]
[377184239,1754268726714,-972.04300972,0.00050905,120]
[377184240,1754268726723,-728.35822835,0.00050906,120]
[377184241,1754268726732,-786.44948424,0.00050907,120]
[377184242,1754268726741,-57868.61255851,0.00050908,120]
[377184243,1754268726750,-307.88690174,0.00050909,120]
[377184244,1754268726759,-786.44948424,0.0005091,120]
[377184245,1754268726768,-165.37686899,0.0005091,120]
[377184246,1754268726777,-359.89699146,0.00050912,120]
[377184247,1754268726787,-291.61290294,0.00050912,120]
[377184248,1754268726797,-57868.61255851,0.00050913,120]
[377184249,1754268726806,-846.68458445,0.00050914,120]
[377184250,1754268726815,-308.02826665,0.00050914,120]
[377184251,1754268726827,-386.18337485,0.00050915,120]
[377184252,1754268726836,-17360.58376757,0.00050915,120]
[377184253,1754268726846,-386.18337485,0.00050916,120]
[377184254,1754268726855,-223.13613472,0.00050916,120]
[377184255,1754268726865,-1000.0,0.00050916,30]
[377184256,1754268726874,-177.82814965,0.00050916,120]
[377184257,1754268726888,-1199.65663814,0.00050916,120]
[377184258,1754268726898,-1676.11318554,0.00050917,120]
[377184259,1754268726908,-326.13229496,0.00050918,120]
[377184260,1754268726917,-728.35822835,0.0005092,120]
[377184261,1754268726927,-5208.17513029,0.0005092,120]
[377184262,1754268726937,-551.25622991,0.0005092,120]
[377184263,1754268726947,-150.0,0.00050922,7]
[377184264,1754268726957,-1094.60266999,0.00050923,120]
[377184265,1754268726967,-291.61290294,0.00050924,120]
[377184266,1754268726977,-57868.61255851,0.00050925,120]
[377184267,1754268726987,-177.82814965,0.00050928,120]
[377184268,1754268726997,-743.78711568,0.00050928,120]
[377184269,1754268727007,-186.52373497,0.00050928,120]
[377184270,1754268727017,-359.89699146,0.00050929,120]
[377184271,1754268727027,-1199.65663814,0.00050929,120]
[377184272,1754268727037,-186.52373497,0.00050929,120]
[377184273,1754268727046,-5587.04395173,0.0005093,120]
[377184274,1754268727056,-5587.04395173,0.00050935,120]
[377184275,1754268727066,-358.93154969,0.00050936,120]
[377184276,1754268727077,-358.93154969,0.00050938,120]
[377184277,1754268727087,-171.02414498,0.00050939,120]
[377184278,1754268727097,-743.78711568,0.00050939,120]
[377184279,1754268727107,-358.93154969,0.00050942,120]
[377184280,1754268727117,-972.04300972,0.00050945,120]
[377184281,1754268727131,-307.88690174,0.00050946,120]
[377184282,1754268727141,-218.50746853,0.00050947,120]
[377184283,1754268727150,-3990.85406859,0.00050948,120]
[377184284,1754268727160,-386.18337485,0.00050948,120]
[377184285,1754268727170,-254.00537535,0.00050953,120]
[377184286,1754268727180,-1562.45253911,0.00050953,120]
[377184287,1754268727189,-972.04300972,0.00050953,120]
[377184288,1754268727199,-1562.45253911,0.00050954,120]
[377184289,1754268727208,-165.37686899,0.00050955,120]
[377184290,1754268727218,-1142.39201565,0.00050957,120]
[377184291,1754268727227,-218.50746853,0.00050957,120]
[377184292,1754268727237,-855.13,0.00050957,120]
[377184293,1754268727247,-1562.45253911,0.00050957,120]
[377184294,1754268727257,-846.68458445,0.00050957,120]
[377184295,1754268727266,-151.0,0.00050958,120]
[377184296,1754268727275,-151.0,0.00050958,120]
[377184297,1754268727284,-151.0,0.00050958,120]
[377184298,1754268727293,-168.355508,0.00050958,60]
[377184299,1754268727302,-400.0,0.00050958,120]
[377184300,1754268727312,-168.355508,0.00050958,60]
[377184301,1754268727321,-400.0,0.00050958,120]
[377184302,1754268727330,-1244.74,0.00050958,120]
[377184303,1754268727340,-826.02,0.00050958,120]
[377184304,1754268727349,-453.71,0.00050958,120]
[377184305,1754268727358,-661.4,0.00050958,120]
[377184306,1754268727368,-664.09,0.00050958,120]
[377184307,1754268727380,-400.0,0.00050958,120]
[377184308,1754268727389,-400.0,0.00050958,120]
[377184309,1754268727398,-400.0,0.00050958,120]
[377184310,1754268727407,-855.87,0.00050958,120]
[377184311,1754268727416,-400.0,0.00050958,120]
[377184312,1754268727426,-467.5,0.00050958,120]
[377184313,1754268727435,-598.51,0.00050958,30]
[377184314,1754268727444,-1194.47,0.00050958,120]
[377184315,1754268727454,-400.0,0.00050958,120]
[377184316,1754268727463,-400.0,0.00050958,120]
[377184317,1754268727473,-510.02,0.00050958,120]
[377184318,1754268727482,-418.52,0.00050958,120]
[377184319,1754268727491,-718.03,0.00050958,120]
[377184320,1754268727501,-400.0,0.00050958,120]
[377184321,1754268727510,-400.0,0.00050958,120]
[377184322,1754268727520,-489.19,0.00050958,120]
[377184323,1754268727529,-1095.36,0.00050958,120]
[377184324,1754268727538,-400.0,0.00050958,120]
[377184325,1754268727547,-990.86,0.00050958,120]
[377184326,1754268727557,-400.0,0.00050958,120]
[377184327,1754268727566,-400.0,0.00050958,120]
[377184328,1754268727575,-400.0,0.00050958,120]
[377184329,1754268727585,-850.97,0.00050958,120]
[377184330,1754268727595,-865.45,0.00050958,120]
[377184331,1754268727605,-1434.0,0.00050958,120]
[377184332,1754268727615,-607.27,0.00050958,120]
[377184333,1754268727625,-400.0,0.00050958,120]
[377184334,1754268727637,-400.0,0.00050958,120]
[377184335,1754268727646,-675.28,0.00050958,120]
[377184336,1754268727655,-407.60741431,0.00050958,120]
[377184337,1754268727665,-400.0,0.00050958,7]
[377184338,1754268727675,-400.0,0.00050958,120]
[377184339,1754268727685,-400.0,0.00050958,120]
[377184340,1754268727695,-400.0,0.00050958,120]
[377184341,1754268727705,-400.0,0.00050958,120]
[377184342,1754268727714,-750.62,0.00050958,120]
[377184343,1754268727724,-400.0,0.00050958,120]
[377184344,1754268727733,-492.25,0.00050958,120]
[377184345,1754268727744,-400.0,0.00050958,120]
[377184346,1754268727753,-787.81,0.00050958,120]
[377184347,1754268727763,-565.68,0.00050958,120]
[377184348,1754268727774,-900.36,0.00050958,120]
[377184349,1754268727788,-400.0,0.00050958,120]
[377184350,1754268727798,-883.51,0.00050958,120]
[377184351,1754268727807,-975.62,0.00050958,120]
[377184352,1754268727817,-400.0,0.00050958,120]
[377184353,1754268727826,-990.06,0.00050958,120]
[377184354,1754268727835,-870.66,0.00050958,120]
[377184355,1754268727845,-1058.79,0.00050958,120]
[377184356,1754268727854,-1110.44,0.00050958,120]
[377184357,1754268727863,-151.0,0.00050958,120]
[377184358,1754268727873,-151.0,0.00050958,120]
[377184359,1754268727884,-400.0,0.00050958,120]
[377184360,1754268727893,-553.62,0.00050958,120]
[377184361,1754268727903,-798.77,0.00050958,120]
[377184362,1754268727913,-1232.01,0.00050958,120]
[377184363,1754268727923,-1443.52,0.00050958,120]
[377184364,1754268727933,-400.0,0.00050958,120]
[377184365,1754268727942,-1344.32,0.00050958,120]
[377184366,1754268727952,-400.0,0.00050958,120]
[377184367,1754268727961,-1013.93,0.00050958,120]
[377184368,1754268727971,-658.48,0.00050958,120]
[377184369,1754268727981,-871.17,0.00050958,120]
[377184370,1754268727991,-400.0,0.00050958,120]
[377184371,1754268728001,-151.0,0.00050958,120]
[377184372,1754268728010,-702.32,0.00050958,120]
[377184373,1754268728020,-400.0,0.00050958,120]
[377184374,1754268728030,-400.0,0.00050958,120]
[377184375,1754268728039,-400.0,0.00050958,120]
[377184376,1754268728049,-400.0,0.00050958,120]
[377184377,1754268728059,-545.46,0.00050958,120]
[377184378,1754268728068,-556.94,0.00050958,120]
[377184379,1754268728078,-151.0,0.00050958,120]
[377184380,1754268728087,-442.97,0.00050958,120]
[377184381,1754268728097,-400.0,0.00050958,120]
[377184382,1754268728107,-602.84,0.00050958,120]
[377184383,1754268728117,-400.0,0.00050958,120]
[377184384,1754268728129,-457.77,0.00050958,120]
[377184385,1754268728138,-703.12,0.00050958,120]
[377184386,1754268728147,-857.91,0.00050958,120]
[377184387,1754268728158,-705.48,0.00050958,120]
[377184388,1754268728168,-871.66,0.00050958,120]
[377184389,1754268728177,-400.0,0.00050958,120]
[377184390,1754268728187,-400.0,0.00050958,120]
[377184391,1754268728196,-400.0,0.00050958,120]
[377184392,1754268728206,-1332.56,0.00050958,120]
[377184393,1754268728215,-400.0,0.00050958,120]
[377184394,1754268728225,-1325.47,0.00050958,120]
[377184395,1754268728235,-689.05,0.00050958,120]
[377184396,1754268728245,-400.0,0.00050958,120]
[377184397,1754268728254,-1436.9,0.00050958,120]
[377184398,1754268728264,-1022.67,0.00050958,120]
[377184399,1754268728274,-462.19,0.00050958,120]
[377184400,1754268728283,-400.0,0.00050958,120]
[377184401,1754268728293,-400.0,0.00050958,120]
[377184402,1754268728303,-1537.44,0.00050958,120]
[377184403,1754268728312,-841.11,0.00050958,120]
[377184404,1754268728323,-400.0,0.00050958,120]
[377184405,1754268728332,-400.0,0.00050958,120]
[377184406,1754268728342,-664.01,0.00050958,120]
[377184407,1754268728352,-282.554752,0.00050958,120]
[377184408,1754268728362,-400.0,0.00050958,120]
[377184409,1754268728372,-452.74,0.00050958,120]
[377184410,1754268728384,-1114.01,0.00050958,120]
[377184411,1754268728394,-891.04,0.00050958,120]
[377184412,1754268728403,-771.0,0.00050958,120]
[377184413,1754268728413,-400.0,0.00050958,120]
[377184414,1754268728423,-458.09,0.00050958,120]
[377184415,1754268728432,-1272.49,0.00050958,120]
[377184416,1754268728442,-400.0,0.00050958,120]
[377184417,1754268728451,-1179.25,0.00050958,120]
[377184418,1754268728461,-484.25,0.00050958,60]
[377184419,1754268728470,-400.0,0.00050958,120]
[377184420,1754268728480,-151.0,0.00050958,120]
[377184421,1754268728489,-414.36,0.00050958,120]
[377184422,1754268728498,-400.0,0.00050958,120]
[377184423,1754268728508,-400.0,0.00050958,120]
[377184424,1754268728518,-400.0,0.00050958,120]
[377184425,1754268728527,-400.0,0.00050958,120]
[377184426,1754268728537,-726.76,0.00050958,120]
[377184427,1754268728546,-908.23,0.00050958,120]
[377184428,1754268728556,-879.77,0.00050958,120]
[377184429,1754268728566,-1411.22,0.00050958,120]
[377184430,1754268728575,-619.25,0.00050958,120]
[377184431,1754268728586,-400.0,0.00050958,120]
[377184432,1754268728595,-2247.490381,0.00050958,120]
[377184433,1754268728605,-400.0,0.00050958,120]
[377184434,1754268728615,-151.0,0.00050958,120]
[377184435,1754268728626,-400.0,0.00050958,120]
[377184436,1754268728637,-559.47,0.00050958,120]
[377184437,1754268728647,-535.21929466,0.00050958,120]
[377184438,1754268728656,-198.963343,0.00050958,120]
[377184439,1754268728665,-400.0,0.00050958,120]
[377184440,1754268728675,-1917.81123,0.00050958,120]
[377184441,1754268728684,-609.62,0.00050958,120]
[377184442,1754268728696,-2057.412942,0.00050958,120]
[377184443,1754268728706,-400.0,0.00050958,120]
[377184444,1754268728715,-400.0,0.00050958,120]
[377184445,1754268728725,-400.0,0.00050958,120]
[377184446,1754268728734,-647.79,0.00050958,120]
[377184447,1754268728743,-400.0,0.00050958,120]
[377184448,1754268728753,-400.0,0.00050958,120]
[377184449,1754268728762,-642.74,0.00050958,120]
[377184450,1754268728771,-157.054446,0.00050958,120]
[377184451,1754268728781,-400.0,0.00050958,120]
[377184452,1754268728791,-400.0,0.00050958,120]
[377184453,1754268728800,-461.68,0.00050958,120]
[377184454,1754268728810,-155.312005,0.00050958,120]
[377184455,1754268728819,-637.63,0.00050958,120]
[377184456,1754268728829,-1766.94,0.00050958,120]
[377184457,1754268728839,-400.0,0.00050958,120]
[377184458,1754268728850,-400.0,0.00050958,120]
[377184459,1754268728859,-400.0,0.00050958,120]
[377184460,1754268728869,-937.13,0.00050958,120]
[377184461,1754268728879,-400.0,0.00050958,120]
[377184462,1754268728889,-1018.9,0.00050958,120]
[377184463,1754268728898,-151.0,0.00050958,120]
[377184464,1754268728908,-400.0,0.00050958,120]
[377184465,1754268728917,-400.0,0.00050958,120]
[377184466,1754268728927,-1452.21,0.00050958,120]
[377184467,1754268728936,-682.6,0.00050958,120]
[377184468,1754268728947,-688.82,0.00050958,120]
[377184469,1754268728958,-528.094712,0.00050958,120]
[377184470,1754268728968,-400.0,0.00050958,120]
[377184471,1754268728977,-528.094712,0.00050958,120]
[377184472,1754268728988,-399.4936142,0.00050958,120]
[377184473,1754268728998,-400.0,0.00050958,120]
[377184474,1754268729008,-970.46,0.00050958,120]
[377184475,1754268729018,-151.0,0.00050958,120]
[377184476,1754268729028,-391.74677897,0.00050958,120]
[377184477,1754268729038,-151.0,0.00050958,120]
[377184478,1754268729048,-167.845673,0.00050958,120]
[377184479,1754268729058,-253.18274299,0.00050958,120]
[377184480,1754268729067,-1380.71,0.00050958,120]
[377184481,1754268729077,-535.75,0.00050958,120]
[377184482,1754268729087,-777.09,0.00050958,120]
[377184483,1754268729097,-177.21966737,0.00050958,120]
[377184484,1754268729107,-821.49,0.00050958,120]
[377184485,1754268729117,-1683.71,0.00050958,120]
[377184486,1754268729130,-246.8951167,0.00050958,120]
[377184487,1754268729143,-400.0,0.00050958,120]
[377184488,1754268729348,-400.0,0.00050958,120]
[377184489,1754268729368,-400.0,0.00050958,120]
[377184490,1754268729381,-400.0,0.00050958,120]
[377184491,1754268729391,-441.1,0.00050958,120]
[377184492,1754268729399,-190.3037788,0.00050958,120]
[377184493,1754268729409,-940.26,0.00050958,120]
[377184494,1754268729418,-1587.13,0.00050958,120]
[377184495,1754268729427,-400.0,0.00050958,120]
[377184496,1754268729436,-716.15,0.00050958,120]
[377184497,1754268729446,-400.0,0.00050958,120]
[377184498,1754268729455,-400.0,0.00050958,120]
[377184499,1754268729465,-400.0,0.00050958,120]
[377184500,1754268729474,-1505.99,0.00050958,120]
[377184501,1754268729483,-1532.73,0.00050958,120]
[377184502,1754268729493,-1445.81,0.00050958,120]
[377184503,1754268729503,-400.0,0.00050958,120]
[377184504,1754268729512,-400.0,0.00050958,120]
[377184505,1754268729521,-400.0,0.00050958,120]
[377184506,1754268729529,-400.0,0.00050958,120]
[377184507,1754268729539,-475.81,0.00050958,120]
[377184508,1754268729548,-811.21,0.00050958,120]
[377184509,1754268729558,-500.0,0.00050958,120]
[377184510,1754268729567,-779.09,0.00050958,120]
[377184511,1754268729576,-628.6,0.00050958,120]
[377184512,1754268729585,-400.0,0.00050958,120]
[377184513,1754268729594,-583.94,0.00050958,120]
[377184514,1754268729603,-400.0,0.00050958,120]
[377184515,1754268729612,-1655.42,0.00050958,120]
[377184516,1754268729621,-400.0,0.00050958,120]
[377184517,1754268729633,-400.0,0.00050958,120]
[377184518,1754268729642,-400.0,0.00050958,120]
[377184519,1754268729651,-519.83,0.00050958,120]
[377184520,1754268729660,-400.0,0.00050958,120]
[377184521,1754268729669,-738.64,0.00050958,120]
[377184522,1754268729678,-400.0,0.00050958,120]
[377184523,1754268729687,-400.0,0.00050958,120]
[377184524,1754268729700,-1676.12,0.00050958,120]
[377184525,1754268729709,-400.0,0.00050958,120]
[377184526,1754268729719,-907.07,0.00050958,120]
[377184527,1754268729728,-417.446691,0.00050958,120]
[377184528,1754268729739,-185.7193775,0.00050958,120]
[377184529,1754268729749,-400.0,0.00050958,120]
[377184530,1754268729758,-909.63,0.00050958,120]
[377184531,1754268729768,-1111.36,0.00050958,120]
[377184532,1754268729779,-417.446691,0.00050958,120]
[377184533,1754268729789,-400.0,0.00050958,120]
[377184534,1754268729799,-673.74,0.00050958,120]
[377184535,1754268729808,-483.68,0.00050958,120]
[377184536,1754268729817,-864.65,0.00050958,60]
[377184537,1754268729826,-400.0,0.00050958,120]
[377184538,1754268729835,-200.93166831,0.00050958,120]
[377184539,1754268729845,-1503.61,0.00050958,120]
[377184540,1754268729854,-400.0,0.00050958,120]
[377184541,1754268729864,-400.0,0.00050958,120]
[377184542,1754268729874,-544.76143503,0.00050958,120]
[377184543,1754268729885,-400.0,0.00050958,120]
[377184544,1754268729894,-415.28,0.00050958,120]
[377184545,1754268729903,-434.63,0.00050958,120]
[377184546,1754268729913,-400.0,0.00050958,120]
[377184547,1754268729923,-478.68,0.00050958,120]
[377184548,1754268729932,-400.0,0.00050958,120]
[377184549,1754268729942,-762.05,0.00050958,120]
[377184550,1754268729951,-400.0,0.00050958,120]
[377184551,1754268729960,-400.0,0.00050958,120]
[377184552,1754268729970,-400.0,0.00050958,120]
[377184553,1754268729979,-400.0,0.00050958,120]
[377184554,1754268729989,-867.68,0.00050958,120]
[377184555,1754268729998,-166.53367538,0.00050958,120]
[377184556,1754268730008,-400.0,0.00050958,120]
[377184557,1754268730017,-1529.64,0.00050958,120]
[377184558,1754268730026,-1514.52,0.00050958,120]
[377184559,1754268730035,-234.038804,0.00050958,120]
[377184560,1754268730045,-888.99,0.00050958,120]
[377184561,1754268730054,-234.038804,0.00050958,120]
[377184562,1754268730063,-400.0,0.00050958,120]
[377184563,1754268730073,-400.0,0.00050958,120]
[377184564,1754268730082,-1572.71,0.00050958,120]
[377184565,1754268730091,-217.42974728,0.00050958,120]
[377184566,1754268730101,-504.5895469,0.00050958,120]
[377184567,1754268730110,-667.29,0.00050958,120]
[377184568,1754268730120,-400.0,0.00050958,120]
[377184569,1754268730132,-400.0,0.00050958,120]
[377184570,1754268730141,-400.0,0.00050958,120]
[377184571,1754268730150,-560.16,0.00050958,120]
[377184572,1754268730160,-974.46,0.00050958,120]
[377184573,1754268730169,-4405.19,0.00050958,120]
[377184574,1754268730179,-847.66,0.00050958,120]
[377184575,1754268730188,-400.0,0.00050958,120]
[377184576,1754268730197,-1044.37,0.00050958,120]
[377184577,1754268730206,-1027.62,0.00050958,120]
[377184578,1754268730215,-400.0,0.00050958,120]
[377184579,1754268730224,-400.0,0.00050958,120]
[377184580,1754268730233,-400.0,0.00050958,120]
[377184581,1754268730242,-400.0,0.00050958,120]
[377184582,1754268730253,-400.0,0.00050958,120]
[377184583,1754268730262,-411.34,0.00050958,120]
[377184584,1754268730271,-773.44,0.00050958,120]
[377184585,1754268730280,-1164.51,0.00050958,120]
[377184586,1754268730290,-400.0,0.00050958,120]
[377184588,1754268730299,-952.78,0.00050958,120]
[377184589,1754268730309,-400.0,0.00050958,120]
[377184590,1754268730318,-400.0,0.00050958,120]
[377184591,1754268730328,-467.25735186,0.00050958,120]
[377184592,1754268730337,-681.3,0.00050958,120]
[377184593,1754268730347,-400.0,0.00050958,120]
[377184594,1754268730356,-1226.55,0.00050958,120]
[377184595,1754268730365,-1342.41,0.00050958,30]
[377184596,1754268730375,-400.0,0.00050958,120]
[377184597,1754268730387,-400.0,0.00050958,120]
[377184598,1754268730396,-1018.3,0.00050958,120]
[377184599,1754268730405,-400.0,0.00050958,120]
[377184600,1754268730415,-400.0,0.00050958,120]
[377184601,1754268730424,-400.0,0.00050958,120]
[377184602,1754268730434,-621.0,0.00050958,120]
[377184603,1754268730443,-1037.22,0.00050958,120]
[377184604,1754268730452,-613.4,0.00050958,120]
[377184605,1754268730461,-593.66,0.00050958,120]
[377184606,1754268730470,-312.17590453,0.00050958,120]
[377184607,1754268730479,-400.0,0.00050958,120]
[377184608,1754268730489,-665.48,0.00050958,120]
[377184609,1754268730498,-1384.85,0.00050958,120]
[377184610,1754268730507,-512.74,0.00050958,120]
[377184611,1754268730517,-236.79545683,0.00050958,120]
[377184612,1754268730526,-400.0,0.00050958,120]
[377184613,1754268730536,-400.0,0.00050958,120]
[377184614,1754268730545,-400.0,0.00050958,120]
[377184615,1754268730554,-400.0,0.00050958,120]
[377184616,1754268730564,-400.0,0.00050958,120]
[377184617,1754268730573,-1250.2,0.00050958,120]
[377184618,1754268730583,-1796.88,0.00050958,120]
[377184619,1754268730593,-754.08,0.00050958,120]
[377184620,1754268730603,-515.49237525,0.00050958,120]
[377184621,1754268730611,-851.82,0.00050958,120]
[377184622,1754268730620,-533.01,0.00050958,120]
[377184623,1754268730631,-530.85,0.00050958,120]
[377184624,1754268730643,-400.0,0.00050958,120]
[377184625,1754268730652,-400.0,0.00050958,120]
[377184626,1754268730662,-668.86,0.00050958,120]
[377184627,1754268730671,-1655.2,0.00050958,120]
[377184628,1754268730680,-400.0,0.00050958,120]
[377184629,1754268730690,-400.0,0.00050958,120]
[377184630,1754268730702,-427.9,0.00050958,120]
[377184631,1754268730712,-414.02,0.00050958,120]
[377184632,1754268730721,-928.38,0.00050958,120]
[377184633,1754268730731,-400.0,0.00050958,120]
[377184634,1754268730740,-400.0,0.00050958,120]
[377184635,1754268730749,-400.0,0.00050958,120]
[377184636,1754268730759,-400.0,0.00050958,120]
[377184637,1754268730768,-400.0,0.00050958,120]
[377184638,1754268730778,-400.0,0.00050958,120]
[377184639,1754268730787,-400.0,0.00050958,120]
[377184640,1754268730797,-1098.74,0.00050958,120]
[377184641,1754268730806,-749.65,0.00050958,120]
[377184642,1754268730815,-1053.29,0.00050958,120]
[377184643,1754268730829,-400.0,0.00050958,120]
[377184644,1754268730847,-400.0,0.00050958,120]
[377184645,1754268730864,-778.27,0.00050958,120]
[377184646,1754268730884,-901.5,0.00050958,120]
[377184647,1754268730899,-820.28,0.00050958,120]
[377184648,1754268730915,-400.0,0.00050958,120]
[377184649,1754268730933,-400.0,0.00050958,120]
[377184650,1754268730952,-400.0,0.00050958,120]
[377184651,1754268730971,-400.0,0.00050958,120]
[377184652,1754268730989,-163.69375126,0.00050958,120]
[377184653,1754268731007,-400.0,0.00050958,120]
[377184654,1754268731023,-813.08,0.00050958,120]
[377184655,1754268731035,-1446.37,0.00050958,120]
[377184656,1754268731053,-533.79,0.00050958,120]
[377184657,1754268731067,-494.87,0.00050958,120]
[377184658,1754268731084,-400.0,0.00050958,120]
[377184659,1754268731102,-629.0,0.00050958,120]
[377184660,1754268731117,-639.97,0.00050958,120]
[377184661,1754268731133,-993.99,0.00050958,120]
[377184662,1754268731149,-720.19,0.00050958,120]
[377184663,1754268731165,-667.87,0.00050958,60]
[377184664,1754268731181,-400.0,0.00050958,120]
[377184665,1754268731197,-529.79365359,0.00050958,120]
[377184666,1754268731213,-220.556036,0.00050958,120]
[377184667,1754268731228,-1042.81,0.00050958,120]
[377184668,1754268731244,-1607.03,0.00050958,120]
[377184669,1754268731259,-400.0,0.00050958,120]
[377184670,1754268731274,-400.0,0.00050958,120]
[377184671,1754268731289,-220.556036,0.00050958,120]
[377184672,1754268731304,-693.25,0.00050958,120]
[377184673,1754268731320,-400.0,0.00050958,120]
[377184674,1754268731334,-791.76,0.00050958,120]
[377184675,1754268731349,-902.83,0.00050958,120]
[377184676,1754268731364,-400.0,0.00050958,120]
[377184677,1754268731379,-400.0,0.00050958,120]
[377184678,1754268731393,-400.0,0.00050958,120]
[377184679,1754268731407,-562.43,0.00050958,120]
[377184680,1754268731421,-715.25,0.00050958,120]
[377184681,1754268731435,-1235.78,0.00050958,120]
[377184682,1754268731450,-400.0,0.00050958,120]
[377184683,1754268731466,-418.35,0.00050958,120]
[377184684,1754268731481,-882.13,0.00050958,120]
[377184685,1754268731496,-494.65840604,0.00050958,120]
[377184686,1754268731510,-400.0,0.00050958,120]
[377184687,1754268731525,-226.08805012,0.00050958,120]
[377184688,1754268731540,-400.0,0.00050958,120]
[377184689,1754268731556,-426.62,0.00050958,120]
[377184690,1754268731571,-400.0,0.00050958,120]
[377184691,1754268731586,-400.0,0.00050958,120]
[377184692,1754268731602,-1619.25,0.00050958,120]
[377184693,1754268731617,-400.0,0.00050958,120]
[377184694,1754268731635,-1436.52,0.00050958,120]
[377184695,1754268731649,-835.63,0.00050958,120]
[377184696,1754268731664,-277.93143442,0.00050958,120]
[377184697,1754268731679,-400.0,0.00050958,120]
[377184698,1754268731696,-894.51,0.00050958,120]
[377184699,1754268731712,-621.2,0.00050958,120]
[377184700,1754268731728,-1018.59,0.00050958,120]
[377184701,1754268731744,-1373.98,0.00050958,120]
[377184702,1754268731759,-456.11,0.00050958,120]
[377184703,1754268731775,-1531.36,0.00050958,120]